[Event "UZB-ch Men Final 2019"]
[Site "Tashkent"]
[Date "2019.07.08"]
[Round "7.3"]
[White "Vokhidov, Shamsiddin"]
[Black "Karimov, Ibragim"]
[Result "*"]
[ECO "B00"]
[WhiteElo "2515"]
[BlackElo "2211"]
[Annotator "RC"]
[PlyCount "121"]
[EventDate "2019.07.02"]
[EventType "tourn"]
[EventCountry "UZB"]
[SourceTitle "playchess.com"]
[Source "ChessBase"]
[SourceQuality "1"]
[TimeControl "5400+30"]

1. e4 {[%emt 0:00:00]} d6 {[%emt 0:00:00]} 2. d4 {[%emt 0:00:00]} g6 {[%emt 0:00:00]} 3. Bc4 {[%emt 0:00:21]} Bg7 {[%emt 0:00:00]} 4. Nf3 {[%emt 0:00:14]} h6 {[%emt 0:01:47]} 5. h3 {[%emt 0:05:05]} e6 {[%emt 0:04:09]} 6. Bb3 {[%emt 0:03:32]} Ne7 {[%emt 0:01:40]} 7. c3 {[%emt 0:00:33]} Nd7 {[%emt 0:00:48]} 8. Qe2 {[%emt 0:01:39]} a6 {[%emt 0:04:14]} 9. Nbd2 {[%emt 0:03:24]} b6 {[%emt 0:01:04]} 10. Nf1 {[%emt 0:02:18]} Bb7 {[%emt 0:02:57]} 11. Ng3 {[%emt 0:00:25]} c5 {[%emt 0:14:06]} 12. O-O {[%emt 0:02:26]} Qc7 {[%emt 0:09:11]} 13. Rd1 {[%emt 0:09:44]} e5 {[%emt 0:16:10]} 14. Be3 {[%emt 0:05:54]} Rd8 {[%emt 0:04:55]} 15. Qd2 {[%emt 0:10:02]} Nc6 {[%emt 0:12:35]} 16. Bd5 {[%emt 0:08:56]} Ne7 {[%emt 0:01:53]} 17. Bxb7 {[%emt 0:01:29]} Qxb7 {[%emt 0:00:01]} 18. b4 {[%emt 0:04:56]} cxd4 {[%emt 0:11:17]} 19. cxd4 {[%emt 0:00:07]} d5 {[%emt 0:00:17]} 20. exd5 {[%emt 0:03:53]} Nxd5 {[%emt 0:00:35]} 21. Ne4 {[%emt 0:04:26]} Qb8 {[%emt 0:01:40]} 22. dxe5 {[%emt 0:01:44]} Nxe5 {[%emt 0:01:08]} 23. Nxe5 {[%emt 0:00:14]} Bxe5 {[%emt 0:00:37]} 24. Bxh6 {[%emt 0:03:50]} f6 {[%emt 0:01:56]} 25. Rab1 {[%emt 0:10:08]} Kf7 {[%emt 0:00:39]} 26. Qc1 {[%emt 0:00:18]} Rc8 {[%emt 0:01:15]} 27. Qa3 {[%emt 0:00:16]} Rcd8 {[%emt 0:04:09]} 28. Bc1 {[%emt 0:04:20]} Rhe8 {[%emt 0:00:50]} 29. Qf3 {[%emt 0:01:21]} Kg7 {[%emt 0:00:27]} 30. Rb3 {[%emt 0:02:11]} Qc7 {[%emt 0:01:31]} 31. g3 {[%emt 0:01:33]} Ne7 {[%emt 0:00:28]} 32. Rbd3 {[%emt 0:00:43]} Nf5 {[%emt 0:00:09]} 33. Rxd8 {[%emt 0:02:02]} Rxd8 {[%emt 0:00:01]} 34. Rxd8 {[%emt 0:01:56]} Qxd8 {[%emt 0:00:00]} 35. Be3 {[%emt 0:00:12]} Qd5 {[%emt 0:01:10]} 36. Nd2 {[%emt 0:01:11]} Nxe3 {[%emt 0:00:29]} 37. Qxe3 {[%emt 0:00:09]} Qxa2 {[%emt 0:00:05]} 38. Nf3 {[%emt 0:00:58]} Qa1+ {[%emt 0:01:35]} 39. Kg2 {[%emt 0:00:13]} b5 {[%emt 0:01:00]} 40. Qa7+ {[%emt 0:00:55]} Kg8 {[%emt 0:00:34]} 41. Qa8+ {[%emt 0:00:18]} Kf7 {[%emt 0:00:18]} 42. Qb7+ {[%emt 0:00:19]} Kf8 {[%emt 0:00:12]} 43. Nh4 {[%emt 0:01:35]} Qb1 {[%emt 0:00:02]} 44. Qh7 {[%emt 0:00:07]} Qe4+ {[%emt 0:00:34]} 45. Kh2 {[%emt 0:00:01]} Ke8 {[%emt 0:00:34]} 46. Nxg6 {[%emt 0:00:15]} Kd8 {[%emt 0:01:04]} 47. Qe7+ {[%emt 0:00:30]} Kc8 {[%emt 0:00:01]} 48. Qe6+ {[%emt 0:00:46]} Kc7 {[%emt 0:00:09]} 49. Nxe5 {[%emt 0:00:31]} Qxe5 {[%emt 0:01:48]} 50. Qxa6 {[%emt 0:01:28]} Qd4 {[%emt 0:00:45]} 51. Qa5+ {[%emt 0:00:16]} Kc8 {[%emt 0:00:17]} 52. Qa8+ {[%emt 0:00:28]} Kc7 {[%emt 0:00:02]} 53. Qf3 {[%emt 0:00:13]} Qxb4 {[%emt 0:00:12]} 54. Qxf6 {[%emt 0:00:29]} Qc5 {[%emt 0:00:07]} 55. h4 {[%emt 0:01:37]} b4 {[%emt 0:00:05]} 56. Qf7+ {[%emt 0:00:14]} Kb6 {[%emt 0:02:09]} 57. h5 {[%emt 0:00:05]} Qc3 {[%emt 0:00:39]} 58. h6 {[%emt 0:00:46]} b3 {[%emt 0:00:05]} 59. h7 {[%emt 0:00:19]} b2 {[%emt 0:00:04]} 60. Qf8 {[%emt 0:00:17]} b1=Q {[%emt 0:00:34]} 61. Qb8+ {[%emt 0:00:07]} *

[Event "UZB-ch Men Final 2019"]
[Site "Tashkent"]
[Date "2019.07.08"]
[Round "7.4"]
[White "Abdusattorov, Nodirbek"]
[Black "Saydaliev, Saidakbar"]
[Result "*"]
[ECO "C92"]
[WhiteElo "2598"]
[BlackElo "2384"]
[Annotator "RC"]
[PlyCount "93"]
[EventDate "2019.07.02"]
[EventType "tourn"]
[EventCountry "UZB"]
[SourceTitle "playchess.com"]
[Source "ChessBase"]
[SourceQuality "1"]
[TimeControl "5400+30"]

1. e4 {[%emt 0:00:00]} e5 {[%emt 0:07:13]} 2. Nf3 {[%emt 0:00:00]} Nc6 {[%emt 0:01:14]} 3. Bb5 {[%emt 0:00:01]} a6 {[%emt 0:00:17]} 4. Ba4 {[%emt 0:00:22]} Nf6 {[%emt 0:00:27]} 5. O-O {[%emt 0:00:16]} Be7 {[%emt 0:00:12]} 6. Re1 {[%emt 0:00:12]} b5 {[%emt 0:02:24]} 7. Bb3 {[%emt 0:00:07]} d6 {[%emt 0:00:08]} 8. c3 {[%emt 0:00:17]} O-O {[%emt 0:00:14]} 9. h3 {[%emt 0:00:04]} Bb7 {[%emt 0:00:08]} 10. d4 {[%emt 0:01:58]} Re8 {[%emt 0:00:08]} 11. Nbd2 {[%emt 0:01:32]} Bf8 {[%emt 0:00:09]} 12. Bc2 {[%emt 0:00:41]} g6 {[%emt 0:00:21]} 13. d5 {[%emt 0:00:55]} Nb8 {[%emt 0:00:16]} 14. b3 {[%emt 0:00:03]} Nbd7 {[%emt 0:08:14]} 15. Nf1 {[%emt 0:03:06]} c6 {[%emt 0:10:18]} 16. c4 {[%emt 0:00:40]} a5 {[%emt 0:03:28]} 17. Be3 {[%emt 0:05:11]} a4 {[%emt 0:15:23]} 18. Qd2 {[%emt 0:12:18]} axb3 {[%emt 0:04:13]} 19. axb3 {[%emt 0:00:47]} Qc7 {[%emt 0:00:28]} 20. Bd3 {[%emt 0:08:07]} bxc4 {[%emt 0:02:28]} 21. bxc4 {[%emt 0:00:18]} Rxa1 {[%emt 0:00:22]} 22. Rxa1 {[%emt 0:00:10]} Ra8 {[%emt 0:00:10]} 23. Rc1 {[%emt 0:09:05]} Ra3 {[%emt 0:05:50]} 24. Ne1 {[%emt 0:00:49]} c5 {[%emt 0:07:01]} 25. Qb2 {[%emt 0:03:00]} Ra4 {[%emt 0:00:39]} 26. Nd2 {[%emt 0:01:31]} Nb6 {[%emt 0:01:43]} 27. Nc2 {[%emt 0:01:50]} Nfd7 {[%emt 0:00:58]} 28. Rb1 {[%emt 0:02:34]} Qc8 {[%emt 0:02:30]} 29. Qb3 {[%emt 0:05:51]} Qa8 {[%emt 0:03:15]} 30. Rb2 {[%emt 0:00:44]} Ba6 {[%emt 0:00:09]} 31. Be2 {[%emt 0:01:59]} f5 {[%emt 0:05:14]} 32. exf5 {[%emt 0:01:58]} gxf5 {[%emt 0:00:01]} 33. Bg5 {[%emt 0:01:42]} Qe8 {[%emt 0:04:44]} 34. Ra2 {[%emt 0:01:35]} Rxa2 {[%emt 0:02:06]} 35. Qxa2 {[%emt 0:00:06]} Nb8 {[%emt 0:01:29]} 36. Ne3 {[%emt 0:01:25]} Qg6 {[%emt 0:09:06]} 37. Bd8 {[%emt 0:02:27]} N6d7 {[%emt 0:00:53]} 38. Bc7 {[%emt 0:03:54]} f4 {[%emt 0:01:31]} 39. Nef1 {[%emt 0:01:09]} e4 {[%emt 0:01:57]} 40. Bg4 {[%emt 0:00:10]} e3 {[%emt 0:01:44]} 41. fxe3 {[%emt 0:00:39]} fxe3 {[%emt 0:00:07]} 42. Nxe3 {[%emt 0:00:17]} Qd3 {[%emt 0:00:22]} 43. Ndf1 {[%emt 0:01:01]} Bh6 {[%emt 0:00:37]} 44. Be6+ {[%emt 0:01:21]} Kh8 {[%emt 0:00:04]} 45. Qf2 {[%emt 0:00:50]} Bg7 {[%emt 0:01:26]} 46. Bxb8 {[%emt 0:00:27]} Nxb8 {[%emt 0:00:02]} 47. Qf7 {[%emt 0:00:07]} *

[Event "UZB-ch Men Final 2019"]
[Site "Tashkent"]
[Date "2019.07.08"]
[Round "7.5"]
[White "Sabirov, Asilbek"]
[Black "Rakhimov, Rakhmatjon"]
[Result "*"]
[ECO "D00"]
[WhiteElo "2147"]
[BlackElo "2107"]
[Annotator "NA RC"]
[PlyCount "112"]
[EventDate "2019.07.02"]
[EventType "tourn"]
[EventCountry "UZB"]
[SourceTitle "playchess.com"]
[Source "ChessBase"]
[SourceQuality "1"]
[TimeControl "5400+30"]

1. d4 {[%emt 0:00:00]} d5 {[%emt 0:00:00]} 2. Bf4 {[%emt 0:00:00]} Nf6 {[%emt 0:01:47]} 3. e3 {[%emt 0:00:00]} Bf5 {[%emt 0:05:08]} 4. c4 {[%emt 0:01:33]} e6 {[%emt 0:00:51]} 5. Nc3 {[%emt 0:00:12]} Bd6 {[%emt 0:03:10]} 6. Bxd6 {[%emt 0:02:28]} Qxd6 {[%emt 0:00:31]} 7. Qb3 {[%emt 0:04:16]} b6 {[%emt 0:03:35]} 8. Rc1 {[%emt 0:04:29]} c6 {[%emt 0:01:18]} 9. Nf3 {[%emt 0:10:38]} Nbd7 {[%emt 0:02:21]} 10. cxd5 {[%emt 0:02:52]} exd5 {[%emt 0:00:42]} 11. Nh4 {[%emt 0:01:51]} Be6 {[%emt 0:00:41]} 12. Bd3 {[%emt 0:01:11]} g6 {[%emt 0:03:13]} 13. h3 {[%emt 0:01:44]} O-O {[%emt 0:00:35]} 14. Nf3 {[%emt 0:00:22]} Ne4 {[%emt 0:00:51]} 15. Bxe4 {[%emt 0:06:33]} dxe4 {[%emt 0:00:37]} 16. Nxe4 {[%emt 0:00:05]} Qe7 {[%emt 0:04:52]} 17. Qa3 {[%emt 0:00:30]} Qxa3 18. bxa3 {[%emt 0:07:27]} Bxa2 {[%emt 0:01:28]} 19. Rxc6 {[%emt 0:00:30]} Bd5 {[%emt 0:00:45]} 20. Rd6 {[%emt 0:06:10]} Bxe4 {[%emt 0:00:29]} 21. Rxd7 {[%emt 0:00:00]} Rfc8 {[%emt 0:01:41]} 22. O-O {[%emt 0:00:30]} Bc6 {[%emt 0:00:46]} 23. Rd6 {[%emt 0:01:16]} Kf8 {[%emt 0:00:36]} 24. Rf6 {[%emt 0:06:20]} Ke7 {[%emt 0:04:47]} 25. Rf4 {[%emt 0:00:09]} f6 {[%emt 0:00:47]} 26. Rh4 {[%emt 0:07:03]} h5 {[%emt 0:01:16]} 27. Rd1 {[%emt 0:03:15]} Bd5 {[%emt 0:30:14]} 28. e4 {[%emt 0:01:24]} Bb3 {[%emt 0:00:07]} 29. Re1 {[%emt 0:02:00]} Rc3 {[%emt 0:05:46]} 30. d5 {[%emt 0:05:34]} Rac8 {[%emt 0:11:23]} 31. e5 {[%emt 0:02:23]} Bxd5 {[%emt 0:00:49]} 32. exf6+ {[%emt 0:00:12]} Kf7 {[%emt 0:01:26]} 33. Ne5+ {[%emt 0:09:28]} Kxf6 {[%emt 0:00:34]} 34. Nd7+ {[%emt 0:00:09]} Kg7 {[%emt 0:06:00]} 35. Re7+ {[%emt 0:00:40]} Kh6 {[%emt 0:00:07]} 36. Rd4 {[%emt 0:03:13]} Ba2 {[%emt 0:01:55]} 37. Nf6 {[%emt 0:02:26]} R3c7 {[%emt 0:00:31]} 38. Rdd7 {[%emt 0:02:25]} Rxd7 {[%emt 0:00:27]} 39. Rxd7 {[%emt 0:00:01]} Rc6 {[%emt 0:01:23]} 40. Rh7+ {[%emt 0:01:15]} Kg5 {[%emt 0:00:01]} 41. Ne4+ {[%emt 0:00:09]} Kf4 {[%emt 0:00:10]} 42. Ng3 {[%emt 0:00:10]} a5 {[%emt 0:00:24]} 43. Rd7 {[%emt 0:03:24]} Ke5 {[%emt 0:00:39]} 44. Ne2 {[%emt 0:00:48]} Bc4 {[%emt 0:01:55]} 45. Nd4 {[%emt 0:02:14]} Rd6 {[%emt 0:01:34]} 46. f4+ {[%emt 0:00:56]} Kd5 {[%emt 0:00:07]} 47. Rxd6+ {[%emt 0:00:06]} Kxd6 {[%emt 0:00:02]} 48. g4 {[%emt 0:00:53]} hxg4 {[%emt 0:00:28]} 49. hxg4 {[%emt 0:00:01]} Kd5 {[%emt 0:02:41]} 50. Nf3 {[%emt 0:00:11]} Bb3 {[%emt 0:00:59]} 51. Kf2 {[%emt 0:02:29]} b5 {[%emt 0:00:33]} 52. f5 {[%emt 0:00:21]} gxf5 {[%emt 0:00:18]} 53. gxf5 {[%emt 0:00:01]} Bd1 {[%emt 0:01:35]} 54. f6 {[%emt 0:00:11]} Ke6 {[%emt 0:00:14]} 55. Nd4+ {[%emt 0:00:05]} Kxf6 {[%emt 0:00:07]} 56. Nxb5 {[%emt 0:00:02]} Ke5 *

[Event "UZB-ch Men Final 2019"]
[Site "Tashkent"]
[Date "2019.07.09"]
[Round "8.2"]
[White "Saydaliev, Saidakbar"]
[Black "Sabirov, Asilbek"]
[Result "1-0"]
[ECO "D15"]
[WhiteElo "2384"]
[BlackElo "2147"]
[Annotator "NA"]
[PlyCount "59"]
[EventDate "2019.07.02"]
[EventType "tourn"]
[EventCountry "UZB"]
[SourceTitle "playchess.com"]
[Source "ChessBase"]
[SourceQuality "1"]
[TimeControl "5400+30"]

1. c4 {[%emt 0:01:22]} Nf6 {[%emt 0:00:42]} 2. d4 {[%emt 0:01:15]} c6 {[%emt 0:00:14]} 3. Nf3 {[%emt 0:04:27]} d5 {[%emt 0:00:09]} 4. Nc3 {[%emt 0:00:13]} a6 {[%emt 0:00:05]} 5. e3 {[%emt 0:08:59]} b5 {[%emt 0:00:54]} 6. b3 {[%emt 0:00:08]} Bf5 {[%emt 0:04:48]} 7. Be2 {[%emt 0:02:45]} e6 {[%emt 0:01:25]} 8. O-O {[%emt 0:00:55]} Ne4 {[%emt 0:00:17]} 9. Bb2 {[%emt 0:01:10]} Bd6 {[%emt 0:00:27]} 10. Ne5 {[%emt 0:10:01]} O-O {[%emt 0:20:07]} 11. f3 {[%emt 0:14:41]} Nxc3 {[%emt 0:02:13]} 12. Bxc3 {[%emt 0:00:35]} f6 {[%emt 0:06:15]} 13. Nd3 {[%emt 0:05:28]} Qc7 {[%emt 0:00:46]} 14. f4 {[%emt 0:00:49]} Bxd3 {[%emt 0:00:41]} 15. Bxd3 {[%emt 0:03:56]} f5 {[%emt 0:02:26]} 16. Qd2 {[%emt 0:00:46]} Nd7 {[%emt 0:01:51]} 17. Ba5 {[%emt 0:08:27]} Qa7 {[%emt 0:04:58]} 18. cxd5 {[%emt 0:00:18]} exd5 {[%emt 0:00:46]} 19. Qc2 {[%emt 0:01:20]} c5 {[%emt 0:03:35]} 20. Bxf5 {[%emt 0:00:38]} cxd4 {[%emt 0:00:36]} 21. Be6+ {[%emt 0:04:30]} Kh8 {[%emt 0:00:17]} 22. Qc6 {[%emt 0:01:04]} Bc5 {[%emt 0:20:24]} 23. b4 {[%emt 0:01:34]} dxe3 {[%emt 0:01:55]} 24. bxc5 {[%emt 0:00:12]} e2 {[%emt 0:01:19]} 25. Rf2 {[%emt 0:03:43]} Rac8 {[%emt 0:01:22]} 26. Qxd7 {[%emt 0:00:51]} Qxc5 {[%emt 0:00:07]} 27. Re1 {[%emt 0:00:41]} d4 {[%emt 0:01:02]} 28. Rexe2 {[%emt 0:00:47]} d3 {[%emt 0:00:57]} 29. Qxd3 {[%emt 0:00:34]} Rce8 {[%emt 0:01:04]} 30. Bb3 {[%emt 0:02:16]} 1-0

[Event "UZB-ch Men Final 2019"]
[Site "Tashkent"]
[Date "2019.07.09"]
[Round "8.3"]
[White "Karimov, Ibragim"]
[Black "Abdusattorov, Nodirbek"]
[Result "0-1"]
[ECO "A47"]
[WhiteElo "2211"]
[BlackElo "2598"]
[Annotator "ChessBase"]
[PlyCount "122"]
[EventDate "2019.07.02"]
[EventType "tourn"]
[EventCountry "UZB"]
[SourceTitle "playchess.com"]
[Source "ChessBase"]
[SourceQuality "1"]
[TimeControl "5400+30"]

1. d4 {[%emt 0:00:00]} Nf6 {[%emt 0:00:00]} 2. Nf3 {[%emt 0:00:38]} b6 {[%emt 0:00:07]} 3. g3 {[%emt 0:00:30]} Bb7 {[%emt 0:00:24]} 4. Bg2 {[%emt 0:00:04]} g6 {[%emt 0:00:12]} 5. O-O {[%emt 0:01:00]} Bg7 {[%emt 0:00:05]} 6. c4 {[%emt 0:00:22]} O-O {[%emt 0:00:07]} 7. Nc3 {[%emt 0:00:40]} Ne4 {[%emt 0:00:11]} 8. Nd5 {[%emt 0:04:20]} e6 {[%emt 0:01:36]} 9. Nf4 {[%emt 0:06:32]} f5 {[%emt 0:10:22]} 10. h4 {[%emt 0:02:42]} Qf6 {[%emt 0:09:31]} 11. Qb3 {[%emt 0:15:46]} c5 {[%emt 0:15:42]} 12. dxc5 {[%emt 0:14:03]} Nxc5 {[%emt 0:00:34]} 13. Qd1 {[%emt 0:00:48]} Nc6 {[%emt 0:06:18]} 14. Rb1 {[%emt 0:05:26]} Rfd8 {[%emt 0:04:25]} 15. Ng5 {[%emt 0:05:52]} Qd4 {[%emt 0:08:55]} 16. Be3 {[%emt 0:09:47]} Qxd1 {[%emt 0:00:57]} 17. Rfxd1 {[%emt 0:01:25]} h6 {[%emt 0:02:55]} 18. Ngh3 {[%emt 0:03:19]} Kf7 {[%emt 0:01:59]} 19. Bxc5 {[%emt 0:03:59]} bxc5 {[%emt 0:00:07]} 20. Nd3 {[%emt 0:00:05]} Na5 {[%emt 0:03:29]} 21. b3 {[%emt 0:02:34]} Bxg2 {[%emt 0:00:59]} 22. Kxg2 {[%emt 0:00:01]} d6 {[%emt 0:01:45]} 23. e3 {[%emt 0:03:39]} Rab8 {[%emt 0:00:59]} 24. Nhf4 {[%emt 0:00:14]} Nc6 {[%emt 0:00:58]} 25. h5 {[%emt 0:01:46]} g5 {[%emt 0:00:34]} 26. Ne2 {[%emt 0:00:04]} a5 {[%emt 0:02:33]} 27. Rdc1 {[%emt 0:03:08]} Ne7 {[%emt 0:05:37]} 28. Nc3 {[%emt 0:01:32]} Bxc3 {[%emt 0:01:10]} 29. Rxc3 {[%emt 0:00:02]} Ng8 {[%emt 0:00:08]} 30. Nb2 {[%emt 0:01:04]} Nf6 {[%emt 0:00:27]} 31. Rh1 {[%emt 0:00:03]} g4 {[%emt 0:01:23]} 32. Na4 {[%emt 0:00:39]} Ne4 {[%emt 0:01:10]} 33. Rd3 {[%emt 0:00:06]} Ke7 {[%emt 0:00:52]} 34. Nc3 {[%emt 0:00:59]} Nf6 {[%emt 0:00:17]} 35. Na4 {[%emt 0:01:08]} Rbc8 {[%emt 0:02:21]} 36. Nc3 {[%emt 0:01:06]} Rc7 {[%emt 0:05:02]} 37. Re1 {[%emt 0:02:14]} Ne4 {[%emt 0:00:34]} 38. f3 {[%emt 0:01:51]} gxf3+ {[%emt 0:01:18]} 39. Kxf3 {[%emt 0:00:02]} Nxc3 {[%emt 0:01:02]} 40. Rxc3 {[%emt 0:00:01]} Rg8 {[%emt 0:00:12]} 41. e4 {[%emt 0:01:39]} Rg5 {[%emt 0:00:52]} 42. exf5 {[%emt 0:02:57]} Rxf5+ {[%emt 0:00:07]} 43. Kg4 {[%emt 0:00:04]} Rc8 {[%emt 0:01:32]} 44. Rce3 {[%emt 0:02:05]} Rg8+ {[%emt 0:00:11]} 45. Kh4 {[%emt 0:00:36]} e5 {[%emt 0:00:31]} 46. a3 {[%emt 0:00:52]} Rgg5 {[%emt 0:00:50]} 47. b4 {[%emt 0:01:37]} Rxh5+ {[%emt 0:00:31]} 48. Kg4 {[%emt 0:00:01]} axb4 {[%emt 0:00:29]} 49. axb4 {[%emt 0:00:01]} cxb4 {[%emt 0:00:22]} 50. Rb1 {[%emt 0:00:07]} Ke6 {[%emt 0:00:28]} 51. Re2 {[%emt 0:00:09]} Rhg5+ {[%emt 0:01:03]} 52. Kh3 {[%emt 0:00:23]} Rf3 {[%emt 0:00:16]} 53. Rxb4 {[%emt 0:00:07]} Rfxg3+ {[%emt 0:00:18]} 54. Kh2 {[%emt 0:00:18]} R3g4 {[%emt 0:00:53]} 55. Kh3 {[%emt 0:00:19]} Rd4 {[%emt 0:00:20]} 56. Rb8 {[%emt 0:00:15]} Rxc4 {[%emt 0:00:17]} 57. Rd2 {[%emt 0:00:18]} Rd4 {[%emt 0:00:21]} 58. Ra2 {[%emt 0:00:01]} Kd5 {[%emt 0:01:17]} 59. Rb5+ {[%emt 0:00:21]} Ke4 {[%emt 0:00:12]} 60. Rbb2 {[%emt 0:00:23]} Rd3+ {[%emt 0:00:32]} 61. Kh2 {[%emt 0:00:03]} d5 {[%emt 0:00:31]} 0-1

[Event "UZB-ch Men Final 2019"]
[Site "Tashkent"]
[Date "2019.07.09"]
[Round "8.4"]
[White "Iuldachev, Saidali"]
[Black "Vokhidov, Shamsiddin"]
[Result "0-1"]
[ECO "B43"]
[WhiteElo "2451"]
[BlackElo "2515"]
[Annotator "ChessBase"]
[PlyCount "114"]
[EventDate "2019.07.02"]
[EventType "tourn"]
[EventCountry "UZB"]
[SourceTitle "playchess.com"]
[Source "ChessBase"]
[SourceQuality "1"]
[TimeControl "5400+30"]

1. e4 {[%emt 0:00:07]} c5 {[%emt 0:00:43]} 2. Nc3 {[%emt 0:00:08]} e6 {[%emt 0:02:02]} 3. Nf3 {[%emt 0:00:18]} a6 {[%emt 0:01:28]} 4. d4 {[%emt 0:00:07]} cxd4 {[%emt 0:00:02]} 5. Nxd4 {[%emt 0:00:00]} Qc7 {[%emt 0:00:12]} 6. g3 {[%emt 0:00:48]} Bb4 {[%emt 0:03:35]} 7. Bd2 {[%emt 0:03:49]} Nf6 {[%emt 0:02:20]} 8. Bg2 {[%emt 0:00:21]} Nc6 {[%emt 0:02:43]} 9. Nxc6 {[%emt 0:00:29]} bxc6 {[%emt 0:07:45]} 10. O-O {[%emt 0:01:11]} Be7 {[%emt 0:00:17]} 11. Na4 {[%emt 0:04:53]} Bb7 {[%emt 0:07:43]} 12. c4 {[%emt 0:03:29]} c5 {[%emt 0:01:11]} 13. Qe2 {[%emt 0:10:20]} d6 {[%emt 0:00:20]} 14. Bc3 {[%emt 0:01:36]} Qc6 {[%emt 0:13:11]} 15. b3 {[%emt 0:00:30]} h5 {[%emt 0:01:11]} 16. Rfe1 {[%emt 0:16:12]} h4 {[%emt 0:01:47]} 17. Rad1 {[%emt 0:02:06]} hxg3 {[%emt 0:02:21]} 18. fxg3 {[%emt 0:01:12]} e5 {[%emt 0:04:47]} 19. Ba5 {[%emt 0:00:48]} Bc8 {[%emt 0:03:25]} 20. Nc3 {[%emt 0:02:21]} Be6 {[%emt 0:01:03]} 21. Nd5 {[%emt 0:01:17]} Bxd5 {[%emt 0:01:45]} 22. exd5 {[%emt 0:00:15]} Qd7 {[%emt 0:04:12]} 23. Rf1 {[%emt 0:02:53]} Qg4 {[%emt 0:02:31]} 24. Bf3 {[%emt 0:03:56]} Qg6 {[%emt 0:00:23]} 25. Rde1 {[%emt 0:05:48]} Bd8 {[%emt 0:03:26]} 26. Bc3 {[%emt 0:00:56]} Ra7 {[%emt 0:00:23]} 27. Qg2 {[%emt 0:05:01]} Ng4 {[%emt 0:10:35]} 28. h4 {[%emt 0:10:22]} f5 {[%emt 0:02:29]} 29. Bd1 {[%emt 0:00:11]} O-O {[%emt 0:00:23]} 30. Bd2 {[%emt 0:03:07]} Raf7 {[%emt 0:01:23]} 31. Qh3 {[%emt 0:01:12]} Qh5 {[%emt 0:00:52]} 32. Re2 {[%emt 0:11:22]} g5 {[%emt 0:05:12]} 33. Rg2 {[%emt 0:01:13]} Kh8 {[%emt 0:01:05]} 34. Rxf5 {[%emt 0:01:32]} Rxf5 {[%emt 0:00:06]} 35. Bxg4 {[%emt 0:00:06]} Rf1+ {[%emt 0:00:01]} 36. Kh2 {[%emt 0:00:05]} Qh7 {[%emt 0:00:19]} 37. hxg5 {[%emt 0:04:26]} Qxh3+ {[%emt 0:00:15]} 38. Bxh3 {[%emt 0:00:03]} Kg7 {[%emt 0:00:13]} 39. b4 {[%emt 0:00:42]} Bb6 {[%emt 0:01:19]} 40. Be3 {[%emt 0:00:51]} Re1 {[%emt 0:01:36]} 41. bxc5 {[%emt 0:00:46]} Bxc5 {[%emt 0:00:10]} 42. Bxc5 {[%emt 0:00:06]} dxc5 {[%emt 0:00:03]} 43. Rb2 {[%emt 0:01:32]} e4 {[%emt 0:00:34]} 44. Bg4 {[%emt 0:01:46]} Kg6 {[%emt 0:01:02]} 45. Kg2 {[%emt 0:00:40]} Kxg5 {[%emt 0:00:08]} 46. Be2 {[%emt 0:00:47]} e3 {[%emt 0:00:04]} 47. Bf3 {[%emt 0:00:11]} Rc1 {[%emt 0:00:22]} 48. Re2 {[%emt 0:00:47]} Rc3 {[%emt 0:00:11]} 49. d6 {[%emt 0:00:12]} Rd8 {[%emt 0:00:07]} 50. Bd5 {[%emt 0:00:09]} Rxd6 {[%emt 0:00:10]} 51. Kf3 {[%emt 0:01:29]} Rf6+ {[%emt 0:00:17]} 52. Ke4 {[%emt 0:00:05]} Rf2 {[%emt 0:00:17]} 53. Rxe3 {[%emt 0:00:26]} Rxe3+ {[%emt 0:00:05]} 54. Kxe3 {[%emt 0:00:03]} Rxa2 {[%emt 0:00:05]} 55. Bc6 {[%emt 0:00:06]} a5 {[%emt 0:00:40]} 56. Kd3 {[%emt 0:00:16]} a4 {[%emt 0:00:16]} 57. Kc3 {[%emt 0:00:20]} Kg4 {[%emt 0:00:14] Kd4} 0-1

[Event "UZB-ch Men Final 2019"]
[Site "Tashkent"]
[Date "2019.07.09"]
[Round "8.5"]
[White "Sindarov, Javokhir"]
[Black "Yakubboev, Nodirbek"]
[Result "1/2-1/2"]
[ECO "B30"]
[WhiteElo "2479"]
[BlackElo "2575"]
[Annotator "ChessBase"]
[PlyCount "27"]
[EventDate "2019.07.02"]
[EventType "tourn"]
[EventCountry "UZB"]
[SourceTitle "playchess.com"]
[Source "ChessBase"]
[SourceQuality "1"]
[TimeControl "5400+30"]

1. e4 {[%emt 0:00:00]} c5 {[%emt 0:00:00]} 2. Nf3 {[%emt 0:00:00]} Nc6 {[%emt 0:00:00]} 3. Nc3 {[%emt 0:01:53]} e5 {[%emt 0:00:00]} 4. Bc4 {[%emt 0:00:04]} Be7 {[%emt 0:00:07]} 5. d3 {[%emt 0:00:00]} d6 {[%emt 0:00:06]} 6. Nd2 {[%emt 0:04:36]} Nf6 {[%emt 0:00:09]} 7. Nf1 {[%emt 0:00:03]} Nd7 8. Ne3 {[%emt 0:00:27]} O-O {[%emt 0:07:30]} 9. O-O {[%emt 0:07:35]} Bg5 10. Ncd5 Nb6 {[%emt 0:06:14]} 11. Nxb6 {[%emt 0:03:15]} axb6 {[%emt 0:00:22]} 12. c3 {[%emt 0:01:03]} Kh8 {[%emt 0:09:17]} 13. Nd5 {[%emt 0:03:02]} Bxc1 {[%emt 0:00:17]} 14. Qxc1 {[%emt 0:00:14]} 1/2-1/2